bitfinex/quotes_BTCUSD_20220111
["timestamp","ask_amount","ask_price","bid_price","bid_amount"]
[1641902437839,0.32927255,41847.0,41846.0,0.05494]
[1641902438437,0.32927255,41847.0,41844.0,0.154568]
[1641902438636,0.32927255,41847.0,41846.0,0.056]
[1641902439038,0.32921255,41847.0,41846.0,0.056]
[1641902439640,1.35,41846.0,41839.0,0.79313031]
[1641902439946,0.00127057,41836.0,41829.0,1.13002807]
[1641902440141,0.00121057,41836.0,41835.0,0.00243391]
[1641902440342,0.00121057,41836.0,41829.0,0.17412807]
[1641902440343,1.35122409,41835.0,41829.0,0.17412807]
[1641902440541,1.772247,41834.0,41833.0,0.06604]
[1641902440986,0.422247,41834.0,41833.0,0.06604]
[1641902441393,0.422247,41834.0,41833.0,0.075606]
[1641902441786,0.422247,41834.0,41833.0,0.010546]
[1641902442590,0.422247,41834.0,41833.0,0.036546]
[1641902442591,0.428247,41834.0,41833.0,0.036546]
[1641902442988,0.428247,41834.0,41833.0,0.036486]
[1641902443790,0.81224468,41834.0,41833.0,0.036486]
[1641902444189,0.428247,41834.0,41833.0,0.036426]
[1641902444389,0.422247,41834.0,41833.0,0.010426]
[1641902444590,0.473247,41834.0,41833.0,0.013426]
[1641902445432,0.76393857,41834.0,41833.0,0.013366]
[1641902445833,0.422247,41834.0,41833.0,0.010366]
[1641902446034,0.422187,41834.0,41833.0,0.010366]
[1641902446638,0.456187,41834.0,41833.0,0.011306]
[1641902447034,0.84035511,41834.0,41833.0,0.011306]
[1641902447636,0.456187,41834.0,41833.0,0.011306]
[1641902447834,0.80099666,41834.0,41833.0,0.010246]
[1641902448688,0.81699666,41834.0,41833.0,0.010246]
[1641902449085,0.81699666,41834.0,41833.0,0.010186]
[1641902449886,0.80099666,41834.0,41833.0,0.010186]
[1641902450287,0.80099666,41834.0,41833.0,0.010126]
[1641902450687,0.82199666,41834.0,41833.0,0.010126]
[1641902451589,0.82199666,41834.0,41833.0,0.010066]
[1641902452730,0.84299666,41834.0,41833.0,0.010066]
[1641902452929,0.84299666,41834.0,41833.0,0.010006]
[1641902454230,0.84299666,41834.0,41833.0,0.009946]
[1641902454435,0.80099666,41834.0,41833.0,0.009946]
[1641902454630,0.82199666,41834.0,41833.0,0.009946]
[1641902455433,0.443187,41834.0,41833.0,0.009886]
[1641902455981,0.422187,41834.0,41833.0,0.009886]
[1641902456183,0.8081637,41834.0,41833.0,0.009886]
[1641902456582,0.8281637,41834.0,41833.0,0.009826]
[1641902457784,0.8281637,41834.0,41833.0,0.009766]
[1641902458084,1.35,41833.0,41831.0,0.00060949]
[1641902458284,1.39890581,41832.0,41831.0,0.00060949]
[1641902458886,1.2,41831.0,41822.0,0.00243849]
[1641902459084,1.35,41823.0,41822.0,0.00243849]
[1641902459285,1.9312806,41823.0,41821.0,0.826869]
[1641902459488,0.374547,41822.0,41821.0,0.826869]
[1641902459736,0.0477,41822.0,41821.0,0.826869]
[1641902459934,0.0477,41822.0,41821.0,0.826809]
[1641902460134,0.0477,41822.0,41821.0,0.876809]
[1641902460337,0.0477,41822.0,41821.0,0.435369]
[1641902460534,0.04764,41822.0,41821.0,0.435369]
[1641902460735,0.05564,41822.0,41821.0,0.435369]
[1641902461136,0.05564,41822.0,41821.0,0.435309]
[1641902461837,0.05558,41822.0,41821.0,0.435309]
[1641902462040,0.05558,41822.0,41821.0,0.067569]
[1641902462236,0.55558,41822.0,41821.0,0.017569]
[1641902462436,0.930127,41822.0,41821.0,0.017509]
[1641902462636,0.438127,41822.0,41821.0,0.017509]
[1641902463036,0.438067,41822.0,41821.0,0.017509]
[1641902463683,0.438067,41822.0,41821.0,0.017449]
[1641902463884,0.422067,41822.0,41821.0,0.017449]
[1641902464285,0.422007,41822.0,41821.0,0.017449]
[1641902464690,0.431007,41822.0,41821.0,0.017449]
[1641902464885,0.81972919,41822.0,41821.0,0.017389]
[1641902465585,0.81966919,41822.0,41821.0,0.017389]
[1641902465986,0.421947,41822.0,41821.0,0.017389]
[1641902466187,0.421947,41822.0,41821.0,0.017329]
[1641902466387,0.0474,41822.0,41821.0,0.017329]
[1641902466588,0.0474,41822.0,41821.0,0.012329]
[1641902466788,0.05434,41822.0,41821.0,0.012329]
[1641902467245,0.35434,41822.0,41821.0,0.012329]
[1641902467435,0.05434,41822.0,41821.0,0.012269]
[1641902468036,0.04728,41822.0,41821.0,0.012269]
[1641902468438,0.4346096,41823.0,41821.0,0.012269]
[1641902468638,0.557,41822.0,41821.0,0.012209]
[1641902468937,0.007,41822.0,41821.0,0.012209]
[1641902469137,0.30694,41822.0,41821.0,0.012209]
[1641902469338,0.681487,41822.0,41821.0,0.012209]
[1641902469746,0.681487,41822.0,41821.0,0.012149]
[1641902469940,0.374547,41822.0,41821.0,0.012149]
[1641902470438,0.374487,41822.0,41821.0,0.012149]
[1641902470638,0.383487,41822.0,41821.0,0.012149]
[1641902471088,0.383487,41822.0,41821.0,0.012089]
[1641902471286,0.55,41821.0,41819.0,0.00060007]
[1641902471486,0.009,41822.0,41819.0,0.00060007]
[1641902471686,0.00894,41822.0,41819.0,0.00060007]
[1641902471886,0.4823096,41823.0,41819.0,0.00060007]
[1641902472289,0.4823096,41823.0,41819.0,0.00054007]
[1641902472488,0.4823096,41823.0,41818.0,0.48016909]
[1641902472687,0.4903096,41823.0,41818.0,0.48016909]
[1641902473092,0.4903096,41823.0,41818.0,0.53016909]
[1641902473490,0.4903096,41823.0,41818.0,0.48016909]
[1641902473693,0.4903096,41823.0,41812.0,0.05]
[1641902474094,0.4823096,41823.0,41811.0,0.0011]
[1641902474293,0.35301951,41813.0,41811.0,0.0011]
[1641902474493,0.64676618,41813.0,41811.0,0.00104]
[1641902474740,0.35301951,41813.0,41811.0,0.00104]
[1641902475135,0.35295951,41813.0,41811.0,0.00104]
[1641902475738,0.35295951,41813.0,41811.0,0.00098]
[1641902476336,0.35289951,41813.0,41811.0,0.00098]
[1641902476739,0.35889951,41813.0,41811.0,0.00098]
[1641902476938,0.35889951,41813.0,41811.0,0.00092]
[1641902477339,0.35889951,41813.0,41810.0,0.0011]
[1641902477544,0.35883951,41813.0,41810.0,0.0011]
[1641902477940,0.35283951,41813.0,41810.0,0.0011]
[1641902478141,0.35283951,41813.0,41810.0,0.00104]
[1641902478341,0.35283951,41813.0,41809.0,0.00957]
[1641902478342,0.9,41812.0,41809.0,0.00957]
[1641902478584,0.35283951,41813.0,41809.0,0.00072198]
[1641902478781,1.15,41811.0,41807.0,0.419]
[1641902478981,1.35,41810.0,41806.0,0.0003917]
[1641902479182,0.12749,41811.0,41806.0,0.0003917]
[1641902479383,0.24213865,41809.0,41806.0,0.0099617]
[1641902479582,0.32834201,41807.0,41804.0,0.0011]
[1641902480381,0.32834201,41807.0,41804.0,0.010671]
[1641902480584,0.32834201,41807.0,41804.0,0.010611]
[1641902480783,0.33534201,41807.0,41804.0,0.010611]
[1641902481283,0.41276969,41806.0,41803.0,0.0021]
[1641902481783,0.05490565,41805.0,41803.0,0.0021]
[1641902481984,0.05490565,41805.0,41803.0,0.00204]
[1641902482249,0.05490565,41805.0,41803.0,0.011611]
[1641902482748,1.35,41804.0,41795.0,0.41292446]
[1641902482945,1.35,41804.0,41794.0,0.9191]
[1641902483146,0.06190565,41805.0,41793.0,0.70889446]
[1641902483444,0.06190565,41805.0,41802.0,0.00071557]
[1641902483645,0.374647,41804.0,41802.0,0.00071557]
[1641902484247,0.374647,41804.0,41802.0,0.00065557]
[1641902484547,0.374647,41804.0,41801.0,0.0007156]
[1641902484745,0.01,41804.0,41801.0,0.0007156]
[1641902484945,0.30351442,41802.0,41801.0,0.0007156]
[1641902485547,0.30351442,41802.0,41801.0,0.0006556]
[1641902485747,0.27546988,41799.0,41795.0,0.4633467]
[1641902485984,0.3459201,41798.0,41795.0,0.5633467]
[1641902486187,0.3458601,41798.0,41795.0,0.5133467]
[1641902486386,0.3458601,41798.0,41795.0,0.05]
[1641902486587,0.3458601,41798.0,41794.0,0.05]
[1641902486788,0.3458601,41798.0,41794.0,0.04994]
[1641902487088,0.3458601,41798.0,41793.0,0.009572]
[1641902487488,0.3458601,41798.0,41794.0,0.39306975]
[1641902487692,0.30351442,41802.0,41795.0,0.46830118]
[1641902487894,0.30351442,41802.0,41795.0,0.09365418]
[1641902488089,0.30351442,41802.0,41794.0,0.39378443]
[1641902488090,0.270666,41796.0,41794.0,0.39378443]
[1641902488291,0.270666,41796.0,41794.0,0.44378443]
[1641902488696,0.37267047,41801.0,41794.0,0.44378443]
[1641902489391,0.37267047,41801.0,41794.0,0.54741888]
[1641902489593,0.37267047,41801.0,41794.0,0.44306975]
[1641902490651,0.37267047,41801.0,41795.0,0.00071465]
[1641902490851,0.37267047,41801.0,41795.0,0.05071465]
[1641902491653,0.37267047,41801.0,41796.0,0.00071463]
[1641902492856,0.37267047,41801.0,41796.0,0.00122196]
[1641902493059,0.37267047,41801.0,41796.0,0.00056733]
[1641902493990,0.37267047,41801.0,41796.0,0.00050733]
[1641902494190,0.37267047,41801.0,41795.0,0.05]
[1641902495292,0.37267047,41801.0,41795.0,0.0498]
[1641902497535,0.37267047,41801.0,41796.0,0.09464688]
[1641902497739,0.37267047,41801.0,41795.0,0.10206892]
[1641902497936,0.37267047,41801.0,41795.0,0.00071355]
[1641902498137,0.37267047,41801.0,41795.0,0.09963471]
[1641902498536,0.37267047,41801.0,41796.0,0.09217377]
[1641902498737,0.37267047,41801.0,41795.0,0.00071355]
[1641902498938,0.37267047,41801.0,41795.0,0.09357622]
[1641902499137,0.37267047,41801.0,41795.0,0.09351622]
[1641902499341,0.37267047,41801.0,41795.0,0.00071355]
[1641902499538,0.42037047,41801.0,41795.0,0.10394035]
[1641902499740,0.42037047,41801.0,41795.0,0.00071355]
[1641902500341,0.42037047,41801.0,41795.0,0.00065355]
[1641902501398,0.42037047,41801.0,41792.0,0.0011]
[1641902501998,0.28292368,41795.0,41792.0,0.0011]
[1641902502199,0.28286368,41795.0,41792.0,0.0011]
[1641902502599,0.28286368,41795.0,41794.0,0.0003109]
[1641902502799,0.28286368,41795.0,41794.0,0.0002509]
[1641902503200,0.24259907,41797.0,41794.0,0.0002509]
[1641902503399,0.24259907,41797.0,41795.0,0.09452795]
[1641902503400,0.24253907,41797.0,41795.0,0.09452795]
[1641902503605,0.24253907,41797.0,41794.0,0.09118167]
[1641902503800,0.24253907,41797.0,41792.0,0.38008055]
[1641902504003,0.40799381,41793.0,41792.0,0.33709066]
[1641902504200,0.0477,41801.0,41792.0,0.80443005]
[1641902504403,0.01066421,41801.0,41792.0,0.42978305]
[1641902504600,0.01066421,41801.0,41792.0,0.84735519]
[1641902504843,0.01066421,41801.0,41793.0,0.05]
[1641902505043,0.27677613,41801.0,41793.0,0.05]
[1641902505343,0.37404415,41800.0,41793.0,0.05]
[1641902505545,0.37404415,41800.0,41794.0,0.14571966]
[1641902505741,0.37404415,41800.0,41794.0,0.05]
[1641902506342,0.37404415,41800.0,41794.0,0.1462502]
[1641902506543,0.37404415,41800.0,41795.0,0.3842231]
[1641902507043,0.37404415,41800.0,41795.0,0.47576919]
[1641902507342,0.24594653,41799.0,41796.0,0.05]
[1641902507743,0.37404415,41800.0,41796.0,0.05]
[1641902508589,0.37404415,41800.0,41796.0,0.04994]
[1641902508990,0.68249113,41800.0,41796.0,0.04994]
[1641902509389,0.68249113,41800.0,41796.0,0.09676846]
[1641902509590,0.37404415,41800.0,41797.0,0.05]
[1641902509789,0.37404415,41800.0,41798.0,0.10098354]
[1641902510393,0.42108324,41800.0,41799.0,0.10125283]
[1641902510689,0.42108324,41800.0,41796.0,0.1051124]
[1641902510889,0.44708225,41798.0,41796.0,0.1050524]
[1641902511090,0.44708225,41798.0,41797.0,0.1]
[1641902511490,0.44702225,41798.0,41795.0,0.48698167]
[1641902512094,0.44702225,41798.0,41795.0,0.109512]
[1641902512345,0.44702225,41798.0,41795.0,0.009572]
[1641902513447,0.27529096,41800.0,41795.0,0.009512]
[1641902513644,0.42238794,41798.0,41795.0,0.25865634]
[1641902513849,0.42238794,41798.0,41795.0,0.009512]
[1641902514044,0.26611192,41801.0,41795.0,0.059512]
[1641902514245,0.26611192,41801.0,41795.0,0.009512]
[1641902514447,0.39275745,41798.0,41795.0,0.009512]
[1641902514647,0.39275745,41798.0,41795.0,0.009452]
[1641902515988,0.39275745,41798.0,41795.0,0.009392]
[1641902517192,0.39275745,41798.0,41795.0,0.009332]
[1641902517394,0.00720565,41805.0,41795.0,0.009332]
[1641902517395,0.3476964,41801.0,41795.0,0.009332]
[1641902518491,0.3476964,41801.0,41795.0,0.009272]
[1641902519192,0.31737246,41799.0,41793.0,0.00058988]
[1641902519400,0.26893524,41795.0,41793.0,0.00058988]
[1641902519592,0.26893524,41795.0,41794.0,0.374647]
[1641902519840,0.26893524,41795.0,41794.0,0.424587]
[1641902520240,0.26893524,41795.0,41794.0,0.05]
[1641902520439,0.26887524,41795.0,41794.0,0.05]
[1641902520639,0.26887524,41795.0,41792.0,0.52108644]
[1641902520841,0.26887524,41795.0,41793.0,0.374811]
[1641902521041,0.26887524,41795.0,41793.0,0.424751]
[1641902521441,0.3476964,41801.0,41793.0,0.424751]
[1641902521646,0.3476964,41801.0,41793.0,0.05]
[1641902521843,0.3476964,41801.0,41792.0,0.52108844]
[1641902522242,0.3476964,41801.0,41792.0,0.53066144]
[1641902522842,0.31985997,41799.0,41792.0,0.53066144]
[1641902523041,0.31985997,41799.0,41793.0,0.0005912]
[1641902524091,0.31985997,41799.0,41793.0,0.00059134]
[1641902525393,0.31985997,41799.0,41793.0,0.00059092]
[1641902527842,0.31985997,41799.0,41793.0,0.00059089]
[1641902528938,0.31985997,41799.0,41793.0,0.00059098]
[1641902531496,0.31985997,41799.0,41793.0,0.00059099]
[1641902532494,0.31985997,41799.0,41793.0,0.00059097]
[1641902533297,0.3476964,41801.0,41793.0,0.00059097]
[1641902534298,0.3476964,41801.0,41795.0,0.32778833]
[1641902534601,0.3476964,41801.0,41795.0,0.1]
[1641902534845,0.3476964,41801.0,41795.0,0.05]
[1641902535043,0.3476964,41801.0,41793.0,0.00059095]
[1641902535446,0.3426964,41801.0,41793.0,0.00059095]
[1641902535644,0.3426964,41801.0,41793.0,0.26752137]
[1641902535846,0.3426964,41801.0,41793.0,0.31752137]
[1641902536043,0.3426964,41801.0,41793.0,0.36752137]
[1641902536244,0.3426964,41801.0,41793.0,0.36752138]
[1641902538145,0.3426964,41801.0,41793.0,0.10059096]
[1641902538591,0.3383424,41801.0,41794.0,0.05]
[1641902538992,0.3383424,41801.0,41793.0,0.00059097]
[1641902546091,0.29182645,41796.0,41793.0,0.00059097]
[1641902546294,0.29869357,41795.0,41793.0,0.00059097]
[1641902546895,0.29869357,41795.0,41793.0,0.00053097]
[1641902547095,0.29869357,41795.0,41792.0,0.011264]
[1641902547495,0.29863357,41795.0,41792.0,0.011264]
[1641902548097,0.29863357,41795.0,41792.0,0.011204]
[1641902548297,0.36790662,41794.0,41792.0,0.010613]
[1641902548498,0.36919183,41794.0,41792.0,0.010613]
[1641902548699,0.36913183,41794.0,41792.0,0.010613]
[1641902548898,0.0477,41793.0,41792.0,0.010613]
[1641902549297,0.0477,41793.0,41792.0,0.010553]
[1641902549954,0.04764,41793.0,41792.0,0.010553]
[1641902550553,0.04764,41793.0,41792.0,0.010493]
[1641902550755,0.47856015,41793.0,41792.0,0.00092]
[1641902550957,0.05564,41793.0,41792.0,0.00092]
[1641902551156,0.05564,41793.0,41792.0,0.375715]
[1641902551157,0.008,41793.0,41792.0,0.375715]
[1641902551558,0.008,41793.0,41792.0,0.00092]
[1641902552057,0.75356306,41796.0,41792.0,0.00092]
[1641902552459,0.75356306,41796.0,41792.0,0.00086]
[1641902553057,0.75356306,41796.0,41790.0,0.00093143]
[1641902553699,0.75356306,41796.0,41790.0,0.00087143]
[1641902554995,0.75356306,41796.0,41790.0,0.00081143]
[1641902555195,0.30161663,41796.0,41790.0,0.00081143]
[1641902555401,0.30161663,41796.0,41790.0,0.00111718]
[1641902556194,0.30161663,41796.0,41790.0,0.00105718]
[1641902556594,0.30161663,41796.0,41790.0,0.00122955]
[1641902557442,0.30161663,41796.0,41790.0,0.00116955]
[1641902558644,0.30161663,41796.0,41790.0,0.00110955]
[1641902559043,0.30161663,41796.0,41790.0,0.00118988]
[1641902559742,0.30161663,41796.0,41790.0,0.00112988]
[1641902560991,0.30161663,41796.0,41790.0,0.00106988]
[1641902561493,0.25475636,41791.0,41790.0,0.00113959]
[1641902562094,1.55475636,41791.0,41790.0,0.00107959]
[1641902562293,0.62955136,41791.0,41790.0,0.00107959]
[1641902562696,1.0,41790.0,41783.0,0.42591112]
[1641902562896,1.0,41790.0,41781.0,0.9216]
[1641902563202,1.0,41790.0,41781.0,1.34751112]
[1641902563396,1.0,41790.0,41788.0,0.00054238]
[1641902563596,0.374795,41789.0,41788.0,0.00054238]
[1641902563797,0.6990453,41789.0,41788.0,0.00054238]
[1641902564000,0.374795,41789.0,41788.0,0.00054238]
[1641902564197,0.25475636,41791.0,41781.0,0.47591112]
[1641902564398,0.25475636,41791.0,41781.0,0.52591112]
[1641902564751,0.32963506,41784.0,41781.0,0.52591112]
[1641902564944,0.32963506,41784.0,41782.0,0.374795]
[1641902565244,0.32957506,41784.0,41782.0,0.374795]
[1641902565644,0.32957506,41784.0,41782.0,0.374735]
[1641902565848,0.26714045,41784.0,41782.0,0.374735]
[1641902566247,0.26708045,41784.0,41782.0,0.374735]
[1641902566448,0.26708045,41784.0,41781.0,0.10076927]
[1641902566848,0.26708045,41784.0,41781.0,0.10070927]
[1641902567448,0.26702045,41784.0,41781.0,0.10070927]
[1641902567648,0.26702045,41784.0,41781.0,0.09994]
[1641902568050,0.26702045,41784.0,41781.0,0.09988]
[1641902568504,0.26702045,41784.0,41780.0,0.52644432]
[1641902568701,0.26696045,41784.0,41780.0,0.52644432]
[1641902568903,0.26696045,41784.0,41780.0,0.52644582]
[1641902569302,0.26696045,41784.0,41780.0,0.52638582]
[1641902569503,0.26696045,41784.0,41780.0,0.11048582]
[1641902570104,0.26696045,41784.0,41781.0,0.05]
[1641902570501,0.26696045,41784.0,41781.0,0.04994]
[1641902571107,0.26690045,41784.0,41781.0,0.04994]
[1641902571703,0.26690045,41784.0,41781.0,0.04988]
[1641902572347,0.66454318,41784.0,41780.0,0.11024248]
[1641902572545,0.26684045,41784.0,41780.0,0.11024248]
[1641902572944,0.26684045,41784.0,41780.0,0.11018248]
[1641902573546,0.26684045,41784.0,41780.0,0.16018248]
[1641902573748,0.26684045,41784.0,41780.0,0.1601745]
[1641902573945,0.26684045,41784.0,41781.0,0.05]
[1641902574347,0.00127478,41783.0,41780.0,0.1101745]
[1641902574546,0.00848478,41783.0,41780.0,0.1101745]
[1641902574947,0.06018478,41783.0,41780.0,0.11025005]
[1641902575645,0.06018478,41783.0,41780.0,0.10061505]
[1641902576094,0.06018478,41783.0,41780.0,0.10002003]
[1641902576300,0.05618478,41783.0,41780.0,0.10002003]
[1641902576898,0.05618478,41783.0,41780.0,0.09996003]
[1641902577097,0.06218478,41783.0,41780.0,0.09996003]
[1641902578096,0.06218478,41783.0,41780.0,0.09990003]
[1641902578696,0.06218478,41783.0,41780.0,0.10947703]
[1641902578900,0.05618478,41783.0,41780.0,0.10947703]
[1641902579097,0.06218478,41783.0,41780.0,0.10947703]
[1641902579299,0.06218478,41783.0,41780.0,0.10941703]
[1641902580344,0.39891011,41782.0,41781.0,0.05]
[1641902580542,0.05491,41783.0,41781.0,0.04994]
[1641902580943,0.05691,41783.0,41781.0,0.04994]
[1641902581143,0.05691,41783.0,41780.0,0.009577]
[1641902581144,0.05685,41783.0,41780.0,0.009577]
[1641902581342,0.3902006,41783.0,41780.0,0.009577]
[1641902581844,0.3902006,41783.0,41780.0,0.009517]
[1641902582246,0.3882006,41783.0,41780.0,0.059517]
[1641902582745,0.3882006,41783.0,41780.0,0.009517]
[1641902583043,0.3882006,41783.0,41780.0,0.27036309]
[1641902583044,0.06085,41783.0,41780.0,0.27036309]
[1641902583244,0.06085,41783.0,41780.0,0.27030309]
[1641902583496,0.06085,41783.0,41780.0,0.37030309]
[1641902583896,0.06079,41783.0,41780.0,0.37030309]
[1641902584297,0.05479,41783.0,41780.0,0.37030309]
[1641902584698,0.05479,41783.0,41780.0,0.32030309]
[1641902584898,0.05479,41783.0,41780.0,0.009457]
[1641902585099,0.05779,41783.0,41780.0,0.009457]
[1641902585798,0.05779,41783.0,41780.0,0.009397]
[1641902586501,0.05479,41783.0,41780.0,0.009397]
[1641902586705,0.03081884,41789.0,41780.0,0.009397]
[1641902586902,0.00127019,41790.0,41785.0,0.74331821]
[1641902587104,0.00121019,41790.0,41785.0,0.31091639]
[1641902587759,1.2316,41796.0,41785.0,0.31091639]
[1641902587760,0.33212643,41792.0,41786.0,0.05]
[1641902587958,0.65789117,41789.0,41786.0,0.05]
[1641902588159,0.65789117,41789.0,41785.0,0.0005804]
[1641902589061,0.65789117,41789.0,41785.0,0.0005204]
[1641902589265,0.65789117,41789.0,41785.0,0.00058077]
[1641902590263,0.65789117,41789.0,41785.0,0.00052077]
[1641902590463,0.65789117,41789.0,41780.0,1.16757353]
[1641902590661,0.65789117,41789.0,41780.0,0.78467667]
[1641902590861,0.65789117,41789.0,41780.0,1.16656256]
[1641902591799,0.03504324,41788.0,41780.0,0.78467667]
[1641902591994,0.04225184,41788.0,41780.0,0.78467667]
[1641902592997,0.04225184,41788.0,41782.0,0.00076888]
[1641902593695,0.44313961,41788.0,41782.0,0.00076888]
[1641902594098,0.44313961,41788.0,41783.0,0.00076885]
[1641902594751,0.03225184,41788.0,41783.0,0.00076885]
[1641902594947,0.33456883,41785.0,41783.0,0.00076885]
[1641902595146,0.03225184,41788.0,41783.0,0.00070885]
[1641902595346,0.03225184,41788.0,41783.0,0.00077085]
[1641902596146,0.31612041,41786.0,41783.0,0.00077085]
[1641902596346,0.31612041,41786.0,41783.0,0.00071085]
[1641902596546,0.31612041,41786.0,41780.0,0.009397]
[1641902596747,0.03225184,41788.0,41780.0,0.009397]
[1641902597848,0.03225184,41788.0,41782.0,0.00030002]
[1641902597849,0.34021662,41788.0,41782.0,0.00030002]
[1641902598049,0.03225184,41788.0,41782.0,0.00030002]
[1641902598897,0.03225184,41788.0,41782.0,0.00046673]
[1641902599097,0.25098797,41786.0,41782.0,0.00046673]
[1641902599297,0.25092797,41786.0,41782.0,0.00046673]
[1641902599900,0.25092797,41786.0,41782.0,0.00040673]
[1641902600099,0.25092797,41786.0,41782.0,0.00046674]
[1641902601099,0.03225184,41788.0,41782.0,0.00040674]
[1641902601301,0.03225184,41788.0,41781.0,0.00033293]
[1641902602453,0.44515196,41788.0,41786.0,0.23651892]
[1641902602852,1.14758378,41787.0,41780.0,0.009576]
[1641902603054,0.39758378,41787.0,41780.0,0.009576]
[1641902603254,0.44515196,41788.0,41780.0,0.009576]
[1641902603853,0.44515196,41788.0,41780.0,0.26062293]
[1641902604054,0.44515196,41788.0,41780.0,0.31062293]
[1641902604457,0.84511268,41788.0,41780.0,0.31062293]
[1641902604658,0.39413264,41787.0,41780.0,0.31062293]
[1641902604854,0.39413264,41787.0,41780.0,0.31131873]
[1641902605754,0.44515196,41788.0,41780.0,0.31131873]
[1641902605994,0.84438878,41788.0,41780.0,0.31131874]
[1641902606194,0.44515196,41788.0,41780.0,0.31131874]
[1641902606394,0.8421728,41788.0,41780.0,0.31131874]
[1641902606794,0.32054,41786.0,41780.0,0.31131874]
[1641902606996,0.32054,41786.0,41780.0,0.06027181]
[1641902606997,0.40111232,41785.0,41780.0,0.06027181]
[1641902607300,0.40111232,41785.0,41780.0,0.0102718]
[1641902607495,0.40111232,41785.0,41780.0,0.0102118]
[1641902608397,0.40111232,41785.0,41780.0,0.01097391]
[1641902608598,0.40111232,41785.0,41780.0,0.01027811]
[1641902608797,0.32054,41786.0,41780.0,0.01021811]
[1641902609598,0.32054,41786.0,41780.0,0.01077257]
[1641902609847,0.32054,41786.0,41780.0,0.01001046]
[1641902610044,0.85381391,41788.0,41780.0,0.01001046]
[1641902610945,0.85381391,41788.0,41780.0,0.01001045]
[1641902611146,0.24158982,41787.0,41780.0,0.01001045]
[1641902612045,0.24158982,41787.0,41780.0,0.00999528]
[1641902613248,0.24158982,41787.0,41780.0,0.01003924]
[1641902615702,0.24158982,41787.0,41780.0,0.01004242]
[1641902616904,0.24158982,41787.0,41780.0,0.01003336]
[1641902619353,0.24158982,41787.0,41780.0,0.01003272]
[1641902619551,0.84618884,41788.0,41780.0,0.01003272]
[1641902620356,0.44515196,41788.0,41780.0,0.01003272]
[1641902620555,1.12699019,41788.0,41780.0,0.01003456]
[1641902621200,0.70446039,41788.0,41780.0,0.01003456]
[1641902621801,0.42881649,41787.0,41780.0,0.01003456]
[1641902622004,0.70446039,41788.0,41780.0,0.01003456]
[1641902622805,0.70446039,41788.0,41780.0,0.01003469]
[1641902624009,0.70446039,41788.0,41780.0,0.01003431]
[1641902624207,0.42440968,41787.0,41780.0,0.01003431]
[1641902625254,0.42440968,41787.0,41780.0,0.01003432]
[1641902625453,0.27665692,41782.0,41780.0,0.01003432]
[1641902625658,0.27659692,41782.0,41780.0,0.01003432]
[1641902626054,0.42440968,41787.0,41780.0,0.01003432]
[1641902626253,0.42440968,41787.0,41780.0,0.00997432]
[1641902626455,0.42440968,41787.0,41780.0,0.009396]
[1641902627256,0.33695232,41785.0,41780.0,0.009396]
[1641902627457,0.41496456,41784.0,41780.0,0.009336]
[1641902627659,0.41496456,41784.0,41780.0,0.00991437]
[1641902628263,0.41622105,41784.0,41780.0,0.00991437]
[1641902628502,0.58276346,41782.0,41780.0,0.00991437]
[1641902628701,2.22139742,41781.0,41780.0,0.00985437]
[1641902628903,2.26909742,41781.0,41780.0,0.00985438]
[1641902629301,0.91909742,41781.0,41780.0,0.00985438]
[1641902629906,1.91909742,41781.0,41780.0,0.00979438]
[1641902630104,1.35,41780.0,41779.0,0.0022]
[1641902630305,1.99417467,41780.0,41779.0,0.0022]
[1641902631104,2.00817467,41780.0,41779.0,0.00214]
[1641902632373,2.00817467,41780.0,41779.0,0.00208]
[1641902633170,2.01517467,41780.0,41779.0,0.00208]
[1641902633372,2.01517467,41780.0,41779.0,0.011659]
[1641902633575,2.01517467,41780.0,41779.0,0.011599]
[1641902634371,1.99417467,41780.0,41779.0,0.011599]
[1641902634769,1.99417467,41780.0,41779.0,0.011539]
[1641902635172,2.00917467,41780.0,41779.0,0.011539]
[1641902635770,0.65917467,41780.0,41779.0,0.011539]
[1641902636002,0.65917467,41780.0,41779.0,0.011479]
[1641902636003,1.60917467,41780.0,41779.0,0.011479]
[1641902636502,1.59417467,41780.0,41779.0,0.011479]
[1641902637205,1.60817467,41780.0,41779.0,0.011479]
[1641902637401,2.00817467,41780.0,41779.0,0.011419]
[1641902637603,1.60817467,41780.0,41779.0,0.011419]
[1641902638003,1.11046,41780.0,41779.0,0.011419]
[1641902638403,1.09646,41780.0,41779.0,0.011419]
[1641902638603,1.49646,41780.0,41779.0,0.011359]
[1641902638807,1.09646,41780.0,41779.0,0.011359]
[1641902639003,1.41972467,41780.0,41779.0,0.011359]
[1641902639203,1.43672467,41780.0,41779.0,0.011359]
[1641902639857,1.43672467,41780.0,41779.0,0.011299]
[1641902640554,1.41972467,41780.0,41779.0,0.011299]
[1641902640754,1.09646,41780.0,41779.0,0.011299]
[1641902640955,1.09646,41780.0,41779.0,0.011239]
[1641902641157,1.1493484,41780.0,41779.0,0.011239]
[1641902642255,1.1493484,41780.0,41779.0,0.011179]
[1641902642456,1.1323484,41780.0,41779.0,0.011179]
[1641902643257,1.1483484,41780.0,41779.0,0.011179]
[1641902643498,1.1483484,41780.0,41779.0,0.011119]
[1641902644300,1.56914797,41780.0,41779.0,0.011119]
[1641902644499,1.55314797,41780.0,41779.0,0.011119]
[1641902644700,1.55314797,41780.0,41779.0,0.011059]
[1641902645199,1.56914797,41780.0,41779.0,0.00148]
[1641902645400,1.1483484,41780.0,41779.0,0.00148]
[1641902645602,1.5748476,41780.0,41779.0,0.00148]
[1641902645801,1.724885,41778.0,41777.0,0.0005824]
[1641902646002,1.850565,41778.0,41777.0,0.0005824]
[1641902646802,2.17121249,41778.0,41777.0,0.0005824]
[1641902647003,2.17121249,41778.0,41775.0,0.00157355]
[1641902647274,1.44876,41776.0,41775.0,0.00157355]
[1641902647467,1.49646,41776.0,41775.0,0.00157355]
[1641902648269,1.49646,41776.0,41775.0,0.00094]
[1641902649272,1.51046,41776.0,41775.0,0.00094]
[1641902649474,1.51046,41776.0,41775.0,0.00088]
[1641902650370,0.14646,41776.0,41775.0,0.00088]
[1641902650771,0.14646,41776.0,41775.0,0.00082]
[1641902651004,0.5563066,41776.0,41775.0,0.00082]
[1641902651206,0.5713066,41776.0,41775.0,0.00082]
[1641902652006,0.5713066,41776.0,41775.0,0.00076]
[1641902652406,0.14646,41776.0,41775.0,0.00076]
[1641902653207,0.374885,41775.0,41773.0,0.00076755]